bitfinex/quotes_BTCUSD_20250904
["timestamp","ask_amount","ask_price","bid_price","bid_amount"]
[1757002357170,0.33814936,109800.0,109790.0,0.00214111]
[1757002357372,0.71506999,109800.0,109790.0,0.00214111]
[1757002357576,1.09199062,109800.0,109790.0,0.00214111]
[1757002358411,1.11937384,109800.0,109790.0,0.00014111]
[1757002359999,1.61840983,109800.0,109790.0,0.00014111]
[1757002360613,1.63805684,109800.0,109790.0,0.00014111]
[1757002361199,1.48205684,109800.0,109790.0,0.00014111]
[1757002361599,1.63789684,109800.0,109790.0,0.00014111]
[1757002363103,1.63781684,109800.0,109790.0,0.00014111]
[1757002366651,1.63773684,109800.0,109790.0,0.00014111]
[1757002366997,1.63769684,109800.0,109790.0,0.00014111]
[1757002369784,0.72821558,109800.0,109790.0,0.00014111]
[1757002370014,0.88369558,109800.0,109790.0,0.00312111]
[1757002370209,1.10513621,109800.0,109790.0,0.00517111]
[1757002370359,1.63765684,109800.0,109790.0,0.00517111]
[1757002370811,0.88381558,109800.0,109790.0,0.00517111]
[1757002371140,1.141477,109800.0,109790.0,0.00517111]
[1757002377032,1.51839763,109800.0,109790.0,0.00517111]
[1757002377714,1.141477,109800.0,109790.0,0.00517111]
[1757002380521,1.141477,109800.0,109790.0,0.00312111]
[1757002380727,1.141477,109800.0,109790.0,0.00517111]
[1757002380906,1.141477,109800.0,109790.0,0.00014111]
[1757002381657,1.51839763,109800.0,109790.0,0.00014111]
[1757002382235,1.51839763,109800.0,109790.0,0.00312111]
[1757002382465,1.51839763,109800.0,109790.0,0.00517111]
[1757002382671,1.30223734,109800.0,109790.0,0.00517111]
[1757002382824,1.46473969,109800.0,109790.0,0.00517111]
[1757002383026,1.08781906,109800.0,109790.0,0.00517111]
[1757002385175,0.78182999,109800.0,109790.0,0.00517111]
[1757002385403,0.40490936,109800.0,109790.0,0.00517111]
[1757002385598,0.18214936,109800.0,109790.0,0.00517111]
[1757002385800,0.71454999,109800.0,109790.0,0.00517111]
[1757002386823,0.18213277,109810.0,109790.0,0.18733706]
[1757002387033,0.15552,109800.0,109790.0,0.27627305]
[1757002387635,0.15552,109800.0,109790.0,0.27923305]
[1757002388816,0.18313277,109810.0,109800.0,0.18214936]
[1757002389028,0.18313277,109810.0,109800.0,0.18727936]
[1757002389238,0.33865277,109810.0,109800.0,0.18727936]
[1757002389441,0.33765277,109810.0,109800.0,0.18727936]
[1757002389641,0.15552,109810.0,109800.0,0.18727936]
[1757002389846,0.21858275,109830.0,109810.0,0.18213277]
[1757002390046,0.56812521,109830.0,109820.0,0.18724619]
[1757002390275,0.1556,109830.0,109820.0,0.18724619]
[1757002390478,0.15564,109830.0,109820.0,0.18724619]
[1757002390851,0.15576,109830.0,109820.0,0.18724619]
[1757002391261,0.001,109830.0,109820.0,0.300101]
[1757002391465,0.001,109830.0,109820.0,0.333281]
[1757002391862,0.001,109830.0,109820.0,0.37406426]
[1757002392537,0.001,109830.0,109820.0,0.52974426]
[1757002392745,0.01088918,109840.0,109830.0,0.20303842]
[1757002392980,0.01088918,109840.0,109830.0,0.29495441]
[1757002393150,0.33778668,109850.0,109840.0,0.18108302]
[1757002393354,0.33778668,109850.0,109840.0,0.18325302]
[1757002393355,0.71470731,109850.0,109840.0,0.18325302]
[1757002393494,0.71470731,109850.0,109840.0,0.00513]
[1757002393495,0.33778668,109850.0,109840.0,0.00513]
[1757002393707,0.71470731,109850.0,109840.0,0.00513]
[1757002394348,0.71470731,109850.0,109840.0,0.18721302]
[1757002394550,0.71470731,109850.0,109840.0,0.00513]
[1757002395580,0.1820996,109830.0,109820.0,0.28908407]
[1757002395790,0.3376196,109830.0,109820.0,0.1873873]
[1757002396206,0.37692063,109840.0,109830.0,0.1820996]
[1757002396407,0.71452365,109840.0,109830.0,0.1820996]
[1757002396611,0.71452365,109840.0,109820.0,0.27417329]
[1757002396817,0.71452365,109840.0,109830.0,0.00513]
[1757002397021,0.71452365,109840.0,109830.0,0.1872296]
[1757002400151,0.33760302,109840.0,109830.0,0.1872296]
[1757002400354,0.20190013,109850.0,109830.0,0.1872296]
[1757002400558,0.1554,109840.0,109830.0,0.1872296]
[1757002400758,0.71440365,109840.0,109830.0,0.1872296]
[1757002400997,0.71440365,109840.0,109830.0,0.00513]
[1757002401216,0.71440365,109840.0,109830.0,0.1850596]
[1757002401416,0.55900365,109840.0,109830.0,0.1872296]
[1757002401617,0.71420153,109840.0,109830.0,0.1872296]
[1757002402025,0.71420153,109840.0,109830.0,0.1850596]
[1757002402261,0.71420153,109840.0,109830.0,0.00296]
[1757002402396,0.1820996,109830.0,109820.0,0.27712445]
[1757002402600,0.37667851,109830.0,109820.0,0.42956445]
[1757002402924,0.55877811,109830.0,109820.0,0.43173445]
[1757002403100,0.55877811,109830.0,109820.0,0.43469445]
[1757002403501,0.55877811,109830.0,109820.0,0.43569445]
[1757002403903,0.55877811,109830.0,109820.0,0.43669445]
[1757002404517,0.55877811,109830.0,109820.0,0.28129445]
[1757002405102,0.33752302,109840.0,109820.0,0.28129445]
[1757002405374,0.37667851,109830.0,109820.0,0.27833445]
[1757002405497,0.55877811,109830.0,109820.0,0.27833445]
[1757002405899,0.55877811,109830.0,109820.0,0.28029445]
[1757002407013,0.55877811,109830.0,109820.0,0.28129445]
[1757002407801,0.33752302,109840.0,109820.0,0.28129445]
[1757002408011,0.53207851,109830.0,109820.0,0.27833445]
[1757002408222,0.37667851,109830.0,109820.0,0.27833445]
[1757002408672,0.37667851,109830.0,109820.0,0.28029445]
[1757002408890,0.37667851,109830.0,109820.0,0.27929445]
[1757002409373,0.18208302,109840.0,109830.0,0.1820996]
[1757002409607,1.09084004,109840.0,109830.0,0.1872296]
[1757002409914,0.71416153,109840.0,109830.0,0.1872296]
[1757002414662,0.55876153,109840.0,109830.0,0.1872296]
[1757002414889,0.53207851,109840.0,109830.0,0.1872296]
[1757002416800,0.1554,109840.0,109830.0,0.1872296]
[1757002416999,0.34819681,109850.0,109840.0,0.18208302]
[1757002417289,0.58910964,109850.0,109840.0,0.18709302]
[1757002419263,0.5986473,109850.0,109840.0,0.18709302]
[1757002419591,0.18208302,109840.0,109830.0,0.42937559]
[1757002419739,0.57839585,109840.0,109830.0,0.43438559]
[1757002419958,0.57839585,109840.0,109830.0,0.27902559]
[1757002420169,0.57839585,109840.0,109830.0,0.25228599]
[1757002420422,0.57839585,109840.0,109830.0,0.09692599]
[1757002420625,0.57839585,109840.0,109830.0,0.43438559]
[1757002420830,0.57839585,109840.0,109830.0,0.28102559]
[1757002421049,0.57839585,109840.0,109830.0,0.43638559]
[1757002421382,0.73375585,109840.0,109830.0,0.43638559]
[1757002421679,0.73375585,109840.0,109830.0,0.43838559]
[1757002421868,0.57839585,109840.0,109830.0,0.43838559]
[1757002422453,0.39631283,109840.0,109830.0,0.43838559]
[1757002422660,0.57839585,109840.0,109830.0,0.28302559]
[1757002422921,0.39631283,109840.0,109830.0,0.43838559]
[1757002424745,0.01963432,109840.0,109830.0,0.43838559]
[1757002424972,0.40709007,109850.0,109840.0,0.18208302]
[1757002425119,0.40709007,109850.0,109840.0,0.18411302]
[1757002425120,0.74451618,109850.0,109840.0,0.18411302]
[1757002425337,0.74451618,109850.0,109840.0,0.18709302]
[1757002426130,0.74451618,109850.0,109840.0,0.18909302]
[1757002426573,0.74451618,109850.0,109840.0,0.002]
[1757002428783,0.58915618,109850.0,109840.0,0.18408302]
[1757002428997,0.74451618,109850.0,109840.0,0.00498]
[1757002429672,0.74451618,109850.0,109840.0,0.002]
[1757002430761,0.36783767,109850.0,109840.0,0.00498]
[1757002430950,0.74451618,109850.0,109840.0,0.00498]
[1757002431579,0.74451618,109850.0,109840.0,0.002]
[1757002432488,0.74451618,109850.0,109840.0,0.00498]
[1757002432717,0.74451618,109850.0,109840.0,0.002]
[1757002433861,1.12119469,109850.0,109840.0,0.002]
[1757002434324,0.36783767,109850.0,109840.0,0.002]
[1757002434553,0.74451618,109850.0,109840.0,0.002]
[1757002434761,0.58915618,109850.0,109840.0,0.002]
[1757002434955,0.74447618,109850.0,109840.0,0.002]
[1757002437452,0.72479509,109850.0,109840.0,0.002]
[1757002438222,0.56947509,109850.0,109840.0,0.002]
[1757002438420,0.72479509,109850.0,109840.0,0.002]
[1757002438633,0.56947509,109850.0,109840.0,0.18706302]
[1757002438834,0.56947509,109850.0,109840.0,0.00498]
[1757002439070,0.72479509,109850.0,109840.0,0.00498]
[1757002439762,1.1014736,109850.0,109840.0,0.00498]
[1757002439967,1.1014736,109850.0,109840.0,0.18909302]
[1757002440396,1.1014736,109850.0,109840.0,0.00701]
[1757002440604,1.1014736,109850.0,109840.0,0.00498]
[1757002440815,0.72479509,109850.0,109840.0,0.18909302]
[1757002441287,0.01073013,109850.0,109840.0,0.18909302]
[1757002441527,0.37667851,109850.0,109840.0,0.18909302]
[1757002442162,0.37667851,109850.0,109840.0,0.34441302]
[1757002442574,0.55874496,109850.0,109840.0,0.34441302]
[1757002442874,0.01049025,109850.0,109840.0,0.34441302]
[1757002443120,0.37667851,109850.0,109840.0,0.34441302]
[1757002443505,0.37687851,109860.0,109850.0,0.18206645]
[1757002443705,0.75355702,109860.0,109850.0,0.18707645]
[1757002444494,0.9356069,109860.0,109850.0,0.18707645]
[1757002446443,0.18206645,109850.0,109840.0,0.03047479]
[1757002446647,0.18206645,109850.0,109840.0,0.00311]
[1757002446648,1.09070347,109850.0,109840.0,0.00311]
[1757002446894,1.10092518,109850.0,109840.0,0.00311]
[1757002448138,0.18208302,109840.0,109830.0,0.39789885]
[1757002448360,0.93544004,109840.0,109830.0,0.33668484]
[1757002448590,0.75335702,109840.0,109830.0,0.49196484]
[1757002448779,0.37667851,109840.0,109830.0,0.49196484]
[1757002449193,0.37667851,109840.0,109830.0,0.33668484]
[1757002449412,0.37667851,109840.0,109830.0,0.49396484]
[1757002449768,0.37667851,109840.0,109830.0,0.31774602]
[1757002449968,0.37667851,109840.0,109830.0,0.47302602]
[1757002450393,0.37667851,109840.0,109830.0,0.31774602]
[1757002450608,0.93544004,109840.0,109830.0,0.004]
[1757002451033,0.18208302,109840.0,109830.0,0.1913596]
[1757002451265,0.93544004,109840.0,109830.0,0.1913596]
[1757002451577,0.93544004,109840.0,109830.0,0.3466396]
[1757002451784,0.93544004,109840.0,109830.0,0.1913596]
[1757002451968,0.93544004,109840.0,109830.0,0.3466396]
[1757002453513,0.93544004,109840.0,109830.0,0.00926]
[1757002453734,0.83635901,109840.0,109830.0,0.004]
[1757002453941,1.34252004,109840.0,109830.0,0.004]
[1757002454151,1.49780004,109840.0,109830.0,0.004]
[1757002454359,1.34652004,109840.0,109830.0,0.004]
[1757002454559,1.50180004,109840.0,109830.0,0.002]
[1757002454758,1.34652004,109840.0,109830.0,0.002]
[1757002454973,1.87947855,109840.0,109830.0,0.002]
[1757002455475,1.72419855,109840.0,109830.0,0.002]
[1757002455690,1.87947855,109840.0,109830.0,0.002]
[1757002455885,1.87847855,109840.0,109830.0,0.002]
[1757002456153,0.1820996,109830.0,109820.0,0.00325111]
[1757002456337,1.09073662,109830.0,109820.0,0.00325111]
[1757002456633,1.09073662,109830.0,109820.0,0.00540111]
[1757002456921,1.11811007,109830.0,109820.0,0.00540111]
[1757002457118,0.96283007,109830.0,109820.0,0.00540111]
[1757002457295,1.11811007,109830.0,109820.0,0.00540111]
[1757002457499,1.11811007,109830.0,109820.0,0.00640111]
[1757002458027,1.11811007,109830.0,109820.0,0.00740111]
[1757002459725,1.11811007,109830.0,109820.0,0.00214111]
[1757002459936,1.49478858,109830.0,109820.0,0.00214111]
[1757002461031,1.33950858,109830.0,109820.0,0.00214111]
[1757002461245,1.11811007,109830.0,109820.0,0.00640111]
[1757002462020,1.11811007,109830.0,109820.0,0.00114111]
[1757002462224,1.49478858,109830.0,109820.0,0.00114111]
[1757002462436,1.49478858,109830.0,109820.0,0.00014111]
[1757002463024,1.58670457,109830.0,109820.0,0.00014111]
[1757002463431,0.58641545,109830.0,109820.0,0.00014111]
[1757002463628,1.11863785,109830.0,109820.0,0.00014111]
[1757002463842,1.11863785,109830.0,109820.0,0.00540111]
[1757002464140,0.96335785,109830.0,109820.0,0.00540111]
[1757002464481,1.0912644,109830.0,109820.0,0.00540111]
[1757002465387,0.1820996,109830.0,109820.0,0.00540111]
[1757002465580,1.0912644,109830.0,109820.0,0.00540111]
[1757002466576,1.0912644,109830.0,109820.0,0.00325111]
[1757002466771,1.0912644,109830.0,109820.0,0.00014111]
[1757002467604,1.4682068,109830.0,109820.0,0.00014111]
[1757002467804,1.11863805,109830.0,109820.0,0.00014111]
[1757002469569,1.94978877,109830.0,109820.0,0.00014111]
[1757002469773,0.18214936,109800.0,109790.0,0.00311]
[1757002469996,0.93603416,109800.0,109790.0,0.00315698]
[1757002470206,0.71437176,109800.0,109790.0,0.18747293]
[1757002470382,1.09131416,109800.0,109790.0,0.18747293]
[1757002471031,1.09131416,109800.0,109790.0,0.19347293]
[1757002471444,1.09131416,109800.0,109790.0,0.01130698]
[1757002471743,1.09131416,109800.0,109790.0,0.19575]
[1757002471948,1.09131416,109800.0,109790.0,0.01130698]
[1757002472146,1.09131416,109800.0,109790.0,0.19575]
[1757002472357,1.09131416,109800.0,109790.0,0.19347293]
[1757002473190,0.7538848,109800.0,109790.0,0.28538892]
[1757002473401,0.3769424,109800.0,109790.0,0.28538892]
[1757002473604,0.5322224,109800.0,109790.0,0.28538892]
[1757002474374,0.3769424,109800.0,109790.0,0.28538892]
[1757002474582,0.55907643,109810.0,109800.0,0.18214936]
[1757002474791,0.71435643,109810.0,109800.0,0.18740936]
[1757002474993,0.3769424,109810.0,109800.0,0.27932535]
[1757002475217,0.5322224,109810.0,109800.0,0.27932535]
[1757002475885,0.71435517,109810.0,109800.0,0.27932535]
[1757002476048,0.5322224,109810.0,109800.0,0.27932535]
[1757002476462,0.5322224,109810.0,109800.0,0.28132535]
[1757002476664,0.5322224,109810.0,109800.0,0.28332535]
[1757002477209,0.15528,109810.0,109800.0,0.28332535]
[1757002477419,0.33742502,109820.0,109810.0,0.18213277]
[1757002477592,0.33742502,109820.0,109810.0,0.18409277]
[1757002477800,0.33742502,109820.0,109810.0,0.18707277]
[1757002478612,0.71436742,109820.0,109810.0,0.18707277]
[1757002479398,0.71436742,109820.0,109810.0,0.00494]
[1757002479619,0.71436742,109820.0,109810.0,0.19034942]
[1757002479809,0.71436742,109820.0,109810.0,0.18907277]
[1757002485911,0.3769424,109820.0,109810.0,0.18907277]
[1757002486108,0.5322224,109820.0,109810.0,0.28098876]
[1757002488130,0.15528,109820.0,109810.0,0.28098876]
[1757002490593,0.5322224,109820.0,109810.0,0.28098876]
[1757002490807,0.71433859,109820.0,109810.0,0.28098876]
[1757002491706,0.5322224,109820.0,109810.0,0.28098876]
[1757002492533,0.71433859,109820.0,109810.0,0.28098876]
[1757002494442,0.71433859,109820.0,109810.0,0.09885599]
[1757002494759,0.71433859,109820.0,109810.0,0.09391599]
[1757002495156,0.71433859,109820.0,109810.0,0.27604876]
[1757002495355,0.71433859,109820.0,109810.0,0.27902876]
[1757002497048,0.71433859,109820.0,109810.0,0.28098876]
[1757002497928,0.71433859,109820.0,109810.0,0.27902876]
[1757002498593,0.33739619,109820.0,109810.0,0.27902876]
[1757002498826,0.71433859,109820.0,109810.0,0.27902876]
[1757002499067,0.49217611,109820.0,109810.0,0.28098876]
[1757002499289,0.71429859,109820.0,109810.0,0.28098876]
[1757002500580,0.3769424,109820.0,109810.0,0.28098876]
[1757002500816,0.18209997,109830.0,109820.0,0.18211619]
[1757002501055,0.3769424,109830.0,109820.0,0.18705619]
[1757002501273,0.18208302,109840.0,109830.0,0.1820996]
[1757002501490,0.18208302,109840.0,109830.0,0.27895559]
[1757002501701,0.01022171,109850.0,109840.0,0.18208302]
[1757002501908,0.01022171,109850.0,109840.0,0.18404302]
[1757002501909,0.54240411,109850.0,109840.0,0.18404302]
[1757002502126,0.71424885,109850.0,109840.0,0.18702302]
[1757002502582,0.71424885,109850.0,109840.0,0.00494]
[1757002502789,0.71424885,109850.0,109840.0,0.18702302]
[1757002503018,0.71524885,109850.0,109840.0,0.00494]
[1757002504145,0.18208302,109840.0,109830.0,0.3372996]
[1757002504358,0.55902542,109840.0,109830.0,0.3372996]
[1757002504578,0.55902542,109840.0,109830.0,0.3402796]
[1757002504803,0.1820996,109830.0,109820.0,0.19122199]
[1757002505025,0.559042,109830.0,109820.0,0.44136496]
[1757002505266,0.559042,109830.0,109820.0,0.44332496]
[1757002505838,0.3769424,109830.0,109820.0,0.44332496]
[1757002506038,0.559042,109830.0,109820.0,0.44332496]
[1757002506328,0.559042,109830.0,109820.0,0.34034317]
[1757002506486,0.559042,109830.0,109820.0,0.34234317]
[1757002506487,0.3769424,109830.0,109820.0,0.34234317]
[1757002506689,0.559042,109830.0,109820.0,0.34234317]
[1757002508589,0.1820996,109830.0,109820.0,0.15524698]
[1757002508841,0.559042,109830.0,109820.0,0.15524698]
[1757002509637,0.1820996,109830.0,109820.0,0.18216317]
[1757002509855,0.714242,109830.0,109820.0,0.18531317]
[1757002510080,0.559042,109830.0,109820.0,0.18731317]
[1757002510285,0.1820996,109830.0,109820.0,0.18731317]
[1757002510507,0.559042,109830.0,109820.0,0.18731317]
[1757002510853,0.559042,109830.0,109820.0,0.00319698]
[1757002511048,0.559042,109830.0,109820.0,0.15524698]
[1757002511510,0.559042,109830.0,109820.0,4.698e-05]
[1757002511511,0.1820996,109830.0,109820.0,4.698e-05]
[1757002511889,0.9359844,109830.0,109820.0,4.698e-05]
[1757002512087,0.559042,109830.0,109820.0,4.698e-05]
[1757002512539,0.9359844,109830.0,109820.0,4.698e-05]
[1757002514056,1.0911844,109830.0,109820.0,4.698e-05]
[1757002516060,1.11084696,109830.0,109820.0,4.698e-05]
[1757002516267,1.0911844,109830.0,109820.0,4.698e-05]
[1757002517463,1.52310039,109830.0,109820.0,4.698e-05]
[1757002517685,1.54275644,109830.0,109820.0,4.698e-05]
[1757002517878,1.38755644,109830.0,109820.0,4.698e-05]
[1757002518100,1.54271644,109830.0,109820.0,4.698e-05]
[1757002520231,1.57009351,109830.0,109820.0,4.698e-05]
[1757002521421,1.57013351,109830.0,109820.0,4.698e-05]
[1757002523532,1.57011623,109830.0,109820.0,4.698e-05]
[1757002523731,1.57007623,109830.0,109820.0,4.698e-05]
[1757002523943,1.41491623,109830.0,109820.0,4.698e-05]
[1757002524281,1.55042018,109830.0,109820.0,4.698e-05]
[1757002528039,1.39526018,109830.0,109820.0,4.698e-05]
[1757002528253,1.55042018,109830.0,109820.0,4.698e-05]
[1757002530513,1.92735394,109830.0,109820.0,4.698e-05]
[1757002530947,1.94697972,109830.0,109820.0,4.698e-05]
[1757002533744,1.79181972,109830.0,109820.0,4.698e-05]
[1757002533948,1.94697972,109830.0,109820.0,4.698e-05]
[1757002536213,1.79181972,109830.0,109820.0,4.698e-05]
[1757002536424,1.94697972,109830.0,109820.0,4.698e-05]
[1757002538207,2.00026277,109830.0,109820.0,4.698e-05]
[1757002538405,2.02482825,109830.0,109820.0,4.698e-05]
[1757002538614,1.9715452,109830.0,109820.0,4.698e-05]
[1757002541224,1.98007846,109830.0,109820.0,4.698e-05]
[1757002541371,1.9715052,109830.0,109820.0,4.698e-05]
[1757002541552,1.98003842,109830.0,109820.0,4.698e-05]
[1757002542585,1.82491842,109830.0,109820.0,4.698e-05]
[1757002542799,1.98003842,109830.0,109820.0,4.698e-05]
[1757002543207,1.98643989,109830.0,109820.0,4.698e-05]
[1757002543412,1.82491842,109830.0,109820.0,4.698e-05]
[1757002543626,1.98644081,109830.0,109820.0,4.698e-05]
[1757002544334,2.00351702,109830.0,109820.0,4.698e-05]
[1757002544517,2.03625277,109830.0,109820.0,4.698e-05]
[1757002544731,1.88113277,109830.0,109820.0,4.698e-05]
[1757002544961,1.59457144,109830.0,109820.0,0.00514698]
[1757002545171,1.60311131,109830.0,109820.0,0.00514698]
[1757002546033,2.01492991,109830.0,109820.0,4.698e-05]
[1757002546246,1.98645039,109830.0,109820.0,4.698e-05]
[1757002546454,2.03626755,109830.0,109820.0,4.698e-05]
[1757002546668,2.03626883,109830.0,109820.0,4.698e-05]
[1757002548313,2.01170335,109830.0,109820.0,4.698e-05]
[1757002548904,2.85642944,109830.0,109820.0,4.698e-05]
[1757002549110,2.99609554,109830.0,109820.0,4.698e-05]
[1757002549321,2.96335979,109830.0,109820.0,4.698e-05]
[1757002549526,2.58642603,109830.0,109820.0,4.698e-05]
[1757002550137,2.49451177,109830.0,109820.0,4.698e-05]
[1757002550987,2.49551177,109830.0,109820.0,4.698e-05]
[1757002551199,2.49651177,109830.0,109820.0,4.698e-05]
[1757002551584,2.49451177,109830.0,109820.0,4.698e-05]
[1757002551998,2.49651177,109830.0,109820.0,4.698e-05]
[1757002552430,2.52687358,109830.0,109820.0,4.698e-05]
[1757002553033,2.56777618,109830.0,109820.0,4.698e-05]
[1757002555750,2.12227618,109830.0,109820.0,4.698e-05]
[1757002556161,2.57150227,109830.0,109820.0,4.698e-05]
[1757002556359,2.54920994,109830.0,109820.0,4.698e-05]
[1757002556559,2.17227618,109830.0,109820.0,4.698e-05]
[1757002557047,2.17227407,109830.0,109820.0,4.698e-05]
[1757002557813,2.14187226,109830.0,109820.0,4.698e-05]
[1757002558676,2.13333352,109830.0,109820.0,4.698e-05]
[1757002559337,2.12478979,109830.0,109820.0,4.698e-05]
[1757002559557,2.11838478,109830.0,109820.0,4.698e-05]
[1757002559748,2.10984476,109830.0,109820.0,4.698e-05]
[1757002559958,2.20176075,109830.0,109820.0,4.698e-05]
[1757002560149,2.21670584,109830.0,109820.0,4.698e-05]
[1757002560611,1.96970985,109830.0,109820.0,4.698e-05]
[1757002560834,1.96970985,109830.0,109820.0,0.00304698]
[1757002561043,1.91585399,109830.0,109820.0,0.00514698]
[1757002561262,2.06282604,109830.0,109820.0,0.00514698]
[1757002561469,2.0393388,109830.0,109820.0,0.00514698]
[1757002561678,2.03079799,109830.0,109820.0,0.00514698]
[1757002563567,1.98169437,109830.0,109820.0,0.00514698]
[1757002563817,2.04881437,109830.0,109820.0,0.00514698]
[1757002565286,2.06376091,109830.0,109820.0,0.00514698]
[1757002565411,2.10544295,109830.0,109820.0,0.00514698]
[1757002565644,2.08084271,109830.0,109820.0,0.00514698]
[1757002566052,2.07230183,109830.0,109820.0,0.00514698]
[1757002566432,1.71356261,109830.0,109820.0,0.00514698]
[1757002566844,2.10544183,109830.0,109820.0,0.00514698]
[1757002567292,1.95036183,109830.0,109820.0,0.00514698]
[1757002567538,2.10544183,109830.0,109820.0,0.00514698]
[1757002568150,1.72850807,109830.0,109820.0,0.00514698]
[1757002568532,1.66364616,109830.0,109820.0,0.00514698]
[1757002569392,1.17019621,109830.0,109820.0,0.00514698]
[1757002569629,0.38614245,109830.0,109820.0,0.21748317]
[1757002569840,0.56103336,109830.0,109820.0,0.03536698]
[1757002570045,0.71607336,109830.0,109820.0,0.21748317]
[1757002570250,0.71607336,109830.0,109820.0,0.03536698]
[1757002570456,0.71607336,109830.0,109820.0,0.21748317]
[1757002571066,0.71607336,109830.0,109820.0,0.03536698]
[1757002572018,0.3391396,109830.0,109820.0,0.03536698]
[1757002572244,0.71607336,109830.0,109820.0,0.03536698]
[1757002572454,0.3391396,109830.0,109820.0,0.03536698]
[1757002572654,0.71607336,109830.0,109820.0,0.03536698]
[1757002573942,1.09300712,109830.0,109820.0,0.00514698]
[1757002574159,1.09200712,109830.0,109820.0,0.00514698]
[1757002575314,1.09100712,109830.0,109820.0,0.00514698]
[1757002575545,0.71407336,109830.0,109820.0,0.00514698]
[1757002576615,1.09100712,109830.0,109820.0,0.00514698]
[1757002578158,1.89985687,109830.0,109820.0,4.698e-05]
[1757002578373,1.52292311,109830.0,109820.0,4.698e-05]
[1757002578811,1.89985687,109830.0,109820.0,4.698e-05]
[1757002579031,1.9468674,109830.0,109820.0,4.698e-05]
[1757002580329,1.99109855,109830.0,109820.0,4.698e-05]
[1757002580533,2.03715442,109830.0,109820.0,4.698e-05]
[1757002581371,2.07846919,109830.0,109820.0,4.698e-05]
[1757002581574,2.47883353,109830.0,109820.0,4.698e-05]
[1757002581780,2.47983353,109830.0,109820.0,4.698e-05]
[1757002581991,2.10289977,109830.0,109820.0,4.698e-05]
[1757002582163,1.94785977,109830.0,109820.0,4.698e-05]
[1757002582368,2.14227832,109830.0,109820.0,4.698e-05]
[1757002582576,2.09638579,109830.0,109820.0,4.698e-05]
[1757002582755,2.09838579,109830.0,109820.0,4.698e-05]
[1757002583165,2.12067812,109830.0,109820.0,4.698e-05]
[1757002583539,2.59761188,109830.0,109820.0,4.698e-05]
[1757002583742,2.61388085,109830.0,109820.0,4.698e-05]
[1757002584577,2.64660723,109830.0,109820.0,4.698e-05]
[1757002585027,3.40047475,109830.0,109820.0,4.698e-05]
[1757002585445,3.36774837,109830.0,109820.0,4.698e-05]
[1757002585651,2.23748259,109830.0,109820.0,4.698e-05]
[1757002587232,2.08252259,109830.0,109820.0,4.698e-05]
[1757002587519,2.23748259,109830.0,109820.0,4.698e-05]
[1757002588075,2.27019925,109830.0,109820.0,4.698e-05]
[1757002588287,2.23748259,109830.0,109820.0,4.698e-05]
[1757002590606,2.21519026,109830.0,109820.0,4.698e-05]
[1757002592495,2.24788945,109830.0,109820.0,4.698e-05]
[1757002592695,2.24788095,109830.0,109820.0,4.698e-05]
[1757002593801,2.09292095,109830.0,109820.0,4.698e-05]
[1757002594002,2.24788095,109830.0,109820.0,4.698e-05]
[1757002594150,2.09292095,109830.0,109820.0,4.698e-05]
[1757002594360,1.72927058,109830.0,109820.0,0.00520698]
[1757002594784,1.7502094,109830.0,109820.0,0.00520698]
[1757002594958,1.7002094,109830.0,109820.0,0.00520698]
[1757002595161,1.5452494,109830.0,109820.0,0.00520698]
[1757002595338,1.83140352,109830.0,109820.0,0.00520698]
[1757002595993,2.12732166,109830.0,109820.0,0.00520698]
[1757002596359,2.1518385,109830.0,109820.0,0.00520698]
[1757002596776,0.52214936,109800.0,109790.0,0.07354631]
[1757002596974,1.52324987,109800.0,109790.0,0.07354631]
[1757002597172,1.34110051,109800.0,109790.0,0.07569631]
[1757002597518,1.55063459,109800.0,109790.0,0.00215]
[1757002598662,1.55063459,109800.0,109790.0,0.00315]
[1757002598863,1.55063459,109800.0,109790.0,0.00623]
[1757002599049,1.39567459,109800.0,109790.0,0.00723]
[1757002599412,1.55063459,109800.0,109790.0,0.00723]
[1757002599972,1.55063459,109800.0,109790.0,0.00623]
[1757002600399,1.55264459,109800.0,109790.0,0.00623]
[1757002600608,1.55264459,109800.0,109790.0,0.00523]
[1757002600950,1.39567459,109800.0,109790.0,0.00523]
[1757002601367,1.55059459,109800.0,109790.0,0.00523]
[1757002603880,1.55260459,109800.0,109790.0,0.00523]
[1757002604288,1.55059459,109800.0,109790.0,0.00523]
[1757002605304,1.39567459,109800.0,109790.0,0.00523]
[1757002605714,1.55059459,109800.0,109790.0,0.00523]
[1757002605915,1.39567459,109800.0,109790.0,0.00523]
[1757002606120,1.55059459,109800.0,109790.0,0.00523]
[1757002606721,1.39567459,109800.0,109790.0,0.00523]
[1757002607064,1.55059459,109800.0,109790.0,0.00523]
[1757002607235,1.57024738,109800.0,109790.0,0.00523]
[1757002608654,1.41532738,109800.0,109790.0,0.00523]
[1757002608852,1.57024738,109800.0,109790.0,0.00523]
[1757002610433,1.23024738,109800.0,109790.0,0.00523]
[1757002610985,1.23225738,109800.0,109790.0,0.00215]
[1757002611381,1.24080604,109800.0,109790.0,0.00215]
[1757002612411,1.23225738,109800.0,109790.0,0.00215]
[1757002612631,1.24080742,109800.0,109790.0,0.00215]
[1757002613060,1.24080742,109800.0,109780.0,0.0333]
[1757002613061,0.18216595,109790.0,109780.0,0.0333]
[1757002613262,0.71415821,109790.0,109780.0,0.00316577]
[1757002613557,0.71415821,109790.0,109780.0,0.00531577]
[1757002613772,0.82778634,109790.0,109780.0,0.00223577]
[1757002613934,0.85517348,109790.0,109780.0,0.00223577]
[1757002614343,0.85517348,109790.0,109780.0,0.00631577]
[1757002614578,0.85517348,109790.0,109780.0,0.00323577]
[1757002614729,1.19517348,109790.0,109780.0,0.00323577]
[1757002615341,1.19517348,109790.0,109780.0,0.00108577]
[1757002615543,1.19818348,109790.0,109780.0,0.00108577]
[1757002615951,1.19818348,109790.0,109780.0,0.00208577]
[1757002617785,1.19517348,109790.0,109780.0,0.00208577]
[1757002618242,1.19517348,109790.0,109780.0,0.00423577]
[1757002618451,1.19517348,109790.0,109780.0,0.00208577]
[1757002618657,1.19818348,109790.0,109780.0,0.00208577]
[1757002618865,1.04330348,109790.0,109780.0,0.00208577]
[1757002619088,1.04330348,109790.0,109780.0,0.00423577]
[1757002619089,1.19517348,109790.0,109780.0,0.00423577]
[1757002619287,1.04029348,109790.0,109780.0,0.00531577]
[1757002619706,1.19517348,109790.0,109780.0,0.00531577]
[1757002620277,1.19517348,109790.0,109780.0,0.00223577]
[1757002620925,1.19517348,109790.0,109780.0,0.00531577]
[1757002621232,1.21969032,109790.0,109780.0,0.00223577]
[1757002621430,1.19517348,109790.0,109780.0,0.00223577]
[1757002621644,1.21969032,109790.0,109780.0,0.00223577]
[1757002621818,1.21969032,109790.0,109780.0,8.577e-05]
[1757002622431,1.21768032,109790.0,109780.0,0.00531577]
[1757002622663,1.03828348,109790.0,109780.0,0.00531577]
[1757002622846,1.19316348,109790.0,109780.0,0.00531577]
[1757002623080,1.19316348,109790.0,109780.0,0.03575577]
[1757002623542,0.81605122,109790.0,109780.0,0.03575577]
[1757002623896,1.19316348,109790.0,109780.0,0.00531577]
[1757002624101,1.19517348,109790.0,109780.0,8.577e-05]
[1757002624453,1.19818348,109790.0,109780.0,8.577e-05]